Workbook

Sheet Business Structure
B2: [Company Name]
B3: Business Structure Selector
B4: [Date]
B6: [Company Name] CONFIDENTIAL
B8: Gray cells will be calculated for you. You do not need to enter anything in them.
B9: Planned number of owners | C9: 2
B10: Required protection from personal liability | C10: Low
B11: Net income for business | C11: $250,000
B12: Owner's share of income | C12: =C11/C9 -> $125,000
B13: Salary received from business | C13: $20,000
B14: Owner's other income subject to self-employment tax | C14: $20,000
B15: Owner's marginal tax rate | C15: 28%
B16: State income tax rate on individual income | C16: 5.00%
B17: State income tax rate on business income | C17: 8.00%
C19: Sole Proprietorship | D19: Partnership | E19: Corporation | F19: S Corporation | G19: Limited Liability Corporation (LLC)
B20: Option available? | C20: =IF($C9=1,IF(C10="Low","Yes","No"),"No") -> No | D20: =IF($C9>1,IF(C10="Low","Yes","No"),"No") -> Yes | E20: ="Yes" -> Yes | F20: =IF($C9<75,"Yes", "No") -> Yes | G20: Yes
B21: If no, reason option not available | C21: =IF(C20="Yes","",IF(C9>1,"Number of planned owners",IF(C10<>"Low","Liability",""))) -> Number of planned owners | D21: =IF(D20 = "Yes", "", IF($C9<2,"Number of planned owners", IF($C10<>"Low","Liability",""))) ->  | F21: =IF(F20="Yes","",IF($C9>=75,"Number of planned owners",IF($C10="High","Liability",""))) -> 
B22: Election to be treated as corporation? (Yes/No) | G22: Yes
B23: Business tax return required | C23: None | D23: Form 1065 | E23: Form 1120 | F23: Form 1120S | G23: =IF(G22="Yes","Form 1120",IF(C9>1,"Form 1065",IF(C9>1,"Form 1065","None"))) -> Form 1120
B24: Protection from personal liability | C24: Low | D24: Low | E24: High | F24: High | G24: High
B26: Estimated Tax Liability Caused by Business
B27: Salary from business | C27: =IF(C20="Yes", $C$13, "N/A") -> N/A | D27: =IF(D20="Yes", $C$13, "N/A") -> $20,000.00 | E27: =$C$13 -> $20,000.00 | F27: =$C$13 -> $20,000.00 | G27: =$C$13 -> $20,000.00
B28: Business income currently taxable to owners | C28: =IF(C20 = "Yes", C12, "N/A") -> N/A | D28: =IF(D20="Yes",C12,"N/A") -> $125,000.00 | E28: $0.00 | F28: =IF(F20="Yes",C12,"N/A") -> $125,000.00 | G28: =IF(G20="Yes",IF(G22 = "No", $C12, 0),0) -> $0.00
B29: Percent that is self-employment income | C29: =IF(C20 = "Yes",100%, "N/A") -> N/A | D29: =IF(D20="Yes",100%, "N/A") -> $1.00 | E29: $0.00 | F29: $0.50 | G29: =IF(G20="Yes", IF(G22 = "No", 100%, 0), "N/A") -> $0.00
B31: Income from business subject to self-employment tax | C31: =IF(C20 = "Yes", C28*C29, "N/A") -> N/A | D31: =IF(D20 = "Yes", D28*D29, "N/A") -> $125,000.00 | E31: =IF(E20 = "Yes", E28*E29, "N/A") -> $0.00 | F31: =IF(F20 = "Yes", F28*F29, "N/A") -> $62,500.00 | G31: =IF(G20 = "Yes", G28*G29, "N/A") -> $0.00
B32: Business income taxable to business | C32: N/A | D32: N/A | E32: =C12 -> $125,000.00 | F32: N/A | G32: =IF(G20="Yes", IF(G22="No", 0, C12), "N/A") -> $125,000.00
B34: Individual Tax
B35: FICA tax withheld from salary | C35: N/A | D35: =IF(D20 = "Yes", (MIN(D27,'Tax Calculations'!$C32)*'Tax Calculations'!$C33)+(D27*'Tax Calculations'!$C34), "N/A") -> $1,530.00 | E35: =IF(E20 = "Yes", (MIN(E27,'Tax Calculations'!$C32)*'Tax Calculations'!$C33)+(E27*'Tax Calculations'!$C34), "N/A") -> $1,530.00 | F35: =IF(F20 = "Yes", (MIN(F27,'Tax Calculations'!$C32)*'Tax Calculations'!$C33)+(F27*'Tax Calculations'!$C34), "N/A") -> $1,530.00 | G35: =IF(G20 = "Yes", (MIN(G27,'Tax Calculations'!$C32)*'Tax Calculations'!$C33)+(G27*'Tax Calculations'!$C34), "N/A") -> $1,530.00
B36: Tax on individual tax return:
B37: Federal income tax | C37: =IF(C20 = "Yes", (C27+C28)*$C15, "N/A") -> N/A | D37: =IF(D20="Yes",(D28+D27)*$C15,"N/A") -> $40,600.00 | E37: =IF(E20="Yes",(E28+E27)*$C15,"N/A") -> $5,600.00 | F37: =IF(F20="Yes",(F28+F27)*$C15,"N/A") -> $40,600.00 | G37: =IF(G20="Yes",(G28+G27)*$C15,"N/A") -> $5,600.00
B38: Self-employment tax | C38: N/A | D38: ='Tax Calculations'!E29 -> $10,962.58 | E38: $0.00 | F38: ='Tax Calculations'!G29 -> $8,830.97 | G38: ='Tax Calculations'!I29 -> $0.00
B39: Tax saved on self-employment tax deduction | C39: =IFERROR(IF(C20="Yes", -C38*0.5*$C15, "N/A"),"N/A") -> N/A | D39: =IF(D20="Yes", -D38*0.5*$C15, "N/A") -> -$1,534.76 | E39: =IF(E20="Yes", -E38*0.5*$C15, "N/A") -> $0.00 | F39: =IF(F20="Yes", -F38*0.5*$C15, "N/A") -> -$1,236.34 | G39: =IF(G20="Yes", -G38*0.5*$C15, "N/A") -> $0.00
B40: State income tax | C40: =IF(C20="Yes",(C27+C28)*$C16,"N/A") -> N/A | D40: =IF(D20="Yes",(D27+D28)*$C16,"N/A") -> $7,250.00 | E40: =IF(E20="Yes",(E27+E28)*$C16,"N/A") -> $1,000.00 | F40: =IF(F20="Yes",(F27+F28)*$C16,"N/A") -> $7,250.00 | G40: =IF(G20="Yes",(G27+G28)*$C16,"N/A") -> $1,000.00
B41: Total individual tax | C41: =IFERROR(IF(C20="Yes",SUM(C37:C40)+C35,"N/A"),"N/A") -> N/A | D41: =IF(D20="Yes",SUM(D37:D40)+D35,"N/A") -> $58,807.82 | E41: =IF(E20="Yes",SUM(E37:E40)+E35,"N/A") -> $8,130.00 | F41: =IF(F20="Yes",SUM(F37:F40)+F35,"N/A") -> $56,974.63 | G41: =IF(G20="Yes",SUM(G37:G40)+G35,"N/A") -> $8,130.00
B43: Business Tax
B44: FICA tax withheld from wages | C44: =C35 -> N/A | D44: =D35 -> $1,530.00 | E44: =E35 -> $1,530.00 | F44: =F35 -> $1,530.00 | G44: =G35 -> $1,530.00
B45: Tax on business return:
B46: Federal income tax | C46: N/A | D46: N/A | E46: ='Tax Calculations'!J46 -> $40,375.00 | F46: N/A | G46: =IF(G$22="Yes",'Tax Calculations'!J46,"N/A") -> $40,375.00
B47: State income tax | C47: N/A | D47: N/A | E47: =IF(E20="Yes",(C12-E27)*C17,"N/A") -> $8,400.00 | F47: N/A | G47: =IF(G$22="Yes",E47,"N/A") -> $8,400.00
B48: Total tax paid by business | C48: =C44 -> N/A | D48: =D44 -> $1,530.00 | E48: =E46+E47+E44 -> $50,305.00 | F48: =F44 -> $1,530.00 | G48: =IF(G20="Yes", IF(G22 = "Yes", G46+G47+G44, G44), "N/A") -> $50,305.00
B50: Tax on future year dividend on personal return:
B51: Federal income tax | C51: N/A | D51: N/A | E51: =IF(E20="Yes",C12*C15,"N/A") -> $35,000.00 | F51: N/A | G51: =IF(G$22="Yes", E51, "N/A") -> $35,000.00
B52: State income tax | C52: N/A | D52: N/A | E52: =IF(E20="Yes",(C12-E27)*C16,"N/A") -> $5,250.00 | F52: N/A | G52: =IF(G$22="Yes", E52, "N/A") -> $5,250.00
B53: Total tax on individual income | C53: =IFERROR(IF(C20="Yes", C41+C44, "N/A"),"N/A") -> N/A | D53: =IF(D20= "Yes", D41+D44, "N/A") -> $60,337.82 | E53: =E41+E44+E51+E52 -> $49,910.00 | F53: =F41+F44 -> $58,504.63 | G53: =IF(G20="Yes", IF(G22="Yes", G41+G44+G51+G52,G41+G44), "N/A") -> $49,910.00
B54: Total tax on business income | C54: $0.00 | D54: $0.00 | E54: =E46+E47 -> $48,775.00 | F54: $0.00 | G54: =IF(G20="Yes", IF(G22="No", "N/A", G46+G47), "N/A") -> $48,775.00
B55: Total tax on combined income | C55: =IFERROR(IF(C20="Yes",C53+C54, "N/A"),"N/A") -> N/A | D55: =IF(D20="Yes",D53+D54, "N/A") -> $60,337.82 | E55: =IF(E20="Yes",E53+E54, "N/A") -> $98,685.00 | F55: =IF(F20="Yes",F53+F54, "N/A") -> $58,504.63 | G55: =IF(G20="Yes", IF(G22="No", G53, G53+G54), "N/A") -> $98,685.00
B56: Effective tax rate — individual income | C56: =IFERROR(IF(C$20="Yes", IF(C$27+C$28 = 0, 0, C$53/(C$27+C$28)), "N/A"),"N/A") -> N/A | D56: =IF(D$20="Yes", IF(D$27+D$28 = 0, 0, D$53/(D$27+D$28)), "N/A") -> $0.42 | E56: =IF(E$20="Yes", IF(E$27+C$12 = 0, 0, E$53/(E$27+C$12)), "N/A") -> $0.34 | F56: =IF(F$20="Yes", IF(F$27+F$28 = 0, 0, F53/(F$27+F$28)), "N/A") -> $0.40 | G56: =IF(G$20="Yes", IF(G27+C12 = 0, 0, G53/(G27+C12)), "N/A") -> $0.34
B57: Effective tax rate — business income | C57: N/A | D57: N/A | E57: =IF(E$20="Yes", IF(E$32 = 0, 0, E54/E$32), "N/A") -> $0.39 | F57: N/A | G57: =IF(G$20="Yes", IF(G$22 = "No", "N/A", IF(G$32 = 0, 0, G54/G$32)),"N/A") -> $0.39
B58: Effective tax rate — combined income | C58: =IFERROR(IF(C$20="Yes", IF(C$27+C$28 = 0, 0, C$53/(C$27+C$28)), "N/A"),"N/A") -> N/A | D58: =IF(D$20="Yes", IF(D$27+D$28 = 0, 0, D$55/(D$27+D$28)), "N/A") -> $0.42 | E58: =IF(E$20="Yes", IF(E$32 = 0, 0, E55/E$32), "N/A") -> $0.79 | F58: =IF(F$20="Yes", IF(F$27+F$28 = 0, 0, F55/(F$27+F$28)), "N/A") -> $0.40 | G58: =IF(G$20="Yes", IF(G32 = 0, 0, G$55/G32), "N/A") -> $0.79

Sheet Tax Calculations
B2: ='Business Structure'!B2 -> [Company Name]
B3: Tax Calculations
B4: ='Business Structure'!B4 -> [Date]
B6: [Company Name] CONFIDENTIAL
B8: Gray cells will be calculated for you. You do not need to enter anything into them.
B9: Individual Income Tax Rates
B10: 35%
B11: 33%
B12: 28%
B13: 25%
B14: 15%
B15: 10%
B17: Self-Employment (SE) Tax
B18: Maximum earnings | C18: $90,000
B19: Social security tax rate | C19: 12.40%
B20: Medicare tax rate | C20: 2.90%
D21: Sole Proprietorship | E21: Partnership | G21: S Corporation | I21: Limited Liability Corporation
B22: SE income from business | D22: =IF('Business Structure'!C20="Yes", 'Business Structure'!C28*'Business Structure'!C29, 0) -> $0 | E22: =IF('Business Structure'!D20="Yes", 'Business Structure'!D28*'Business Structure'!D29, 0) -> $125,000 | G22: =IF('Business Structure'!F20="Yes", 'Business Structure'!F28*'Business Structure'!F29, 0) -> $62,500 | I22: =IF('Business Structure'!G20="Yes", IF('Business Structure'!G22="No", 'Business Structure'!G28*'Business Structure'!G29, 0), 0) -> $0
B23: Other SE income | D23: ='Business Structure'!$C$14 -> 20,000 | E23: ='Business Structure'!$C$14 -> 20,000 | G23: ='Business Structure'!$C$14 -> 20,000 | I23: ='Business Structure'!$C$14 -> 20,000
B24: Total SE income | D24: =D22+D23 -> 20,000 | E24: =E22+E23 -> 145,000 | G24: =G22+G23 -> 82,500 | I24: =I22+I23 -> 20,000
B25: Taxable social security income | D25: =MIN($C18,D24)*0.9235 -> 18,470 | E25: =MIN($C18,E24)*0.9235 -> 83,115 | G25: =MIN($C18,G24)*0.9235 -> 76,189 | I25: =MIN($C18,I24)*0.9235 -> 18,470
B26: Social security tax | D26: =D25*$C19 -> 2,290 | E26: =E25*$C19 -> 10,306 | G26: =G25*$C19 -> 9,447 | I26: =I25*$C19 -> 2,290
B27: Medicare tax | D27: =D25*$C20 -> 536 | E27: =E25*$C20 -> 2,410 | G27: =G25*$C20 -> 2,209 | I27: =I25*$C20 -> 536
B28: Total SE tax | D28: =D26+D27 -> 2,826 | E28: =E26+E27 -> 12,717 | G28: =G26+G27 -> 11,657 | I28: =I26+I27 -> 2,826
B29: ="SE tax from "&B2 -> SE tax from [Company Name] | D29: =D28*(D22/D24) -> 0 | E29: =E28*(E22/E24) -> 10,963 | G29: =G28*(G22/G24) -> 8,831 | I29: =I28*(I22/I24) -> 0
B31: FICA Tax for Employees and Businesses
B32: Maximum earnings | C32: $90,000
B33: Social security tax rate | C33: =C19*0.5 -> 6.20%
B34: Medicare tax rate | C34: =C20*0.5 -> 1.45%
B36: Corporate Tax Rate Schedule
B37: If taxable income is | C37: Over | D37: But not over | E37: Tax is | H37: Of the amount over | I37: Total corporate tax | J37: Owner's share
C38: $0 | D38: $50,000 | G38: 15% | H38: $0 | I38: =IF(Net_income_for_business<=D38, Net_income_for_business*G38, 0) -> $0 | J38: =IF(I38=0,0,I38/'Business Structure'!$C$9) -> $0
C39: $50,000 | D39: $75,000 | E39: $7,500 | F39: + | G39: 25% | H39: $50,000 | I39: =IF(Net_income_for_business>D39, 0, IF(Net_income_for_business <=C39, 0,E39+((Net_income_for_business-H39)*G39))) -> $0 | J39: =IF(I39=0,0,I39/'Business Structure'!$C$9) -> $0
C40: $75,000 | D40: $100,000 | E40: $13,750 | F40: + | G40: 34% | H40: $75,000 | I40: $0 | J40: =IF(I40=0,0,I40/'Business Structure'!$C$9) -> $0
C41: $100,000 | D41: $335,000 | E41: $22,250 | F41: + | G41: 39% | H41: $100,000 | I41: $80,750 | J41: =IF(I41=0,0,I41/'Business Structure'!$C$9) -> $40,375
C42: $335,000 | D42: $10,000,000 | E42: $113,900 | F42: + | G42: 34% | H42: $335,000 | I42: $0 | J42: =IF(I42=0,0,I42/'Business Structure'!$C$9) -> $0
C43: $10,000,000 | D43: $15,000,000 | E43: $3,400,000 | F43: + | G43: 35% | H43: $10,000,000 | I43: $0 | J43: =IF(I43=0,0,I43/'Business Structure'!$C$9) -> $0
C44: $15,000,000 | D44: $18,333,333 | E44: $5,159,000 | F44: + | G44: 38% | H44: $15,000,000 | I44: $0 | J44: =IF(I44=0,0,I44/'Business Structure'!$C$9) -> $0
C45: $18,333,333 | D45: ——— | G45: 35% | H45: $0 | I45: =IF(Net_income_for_business>$C$45, Net_income_for_business*$G$45, 0) -> $0 | J45: =IF(I45=0,0,I45/'Business Structure'!$C$9) -> $0
B46: Total | I46: =SUM(I38:I45) -> $80,750 | J46: =SUM(J38:J45) -> $40,375
